bitfinex/quotes_ETHUSD_20251017
["timestamp","ask_amount","ask_price","bid_price","bid_amount"]
[1760692251702,0.428,3738.3,3738.0,0.1336]
[1760692251869,2.849,3738.4,3738.0,0.1336]
[1760692252073,0.428,3738.2,3738.0,0.1336]
[1760692252397,0.428,3738.2,3737.9,0.001]
[1760692252398,2.849,3738.4,3737.9,2.67624958]
[1760692252599,2.849,3738.4,3738.3,2.6750127]
[1760692252898,0.002,3738.4,3738.3,2.8086127]
[1760692253107,0.002,3738.4,3738.3,18.29522182]
[1760692253271,0.002,3738.4,3738.3,20.1300717]
[1760692253499,0.002,3738.4,3738.3,16.5529847]
[1760692253702,0.002,3738.4,3738.3,16.1214847]
[1760692253906,0.002,3738.4,3738.3,5.5210127]
[1760692254237,0.002,3738.4,3738.3,3.1065127]
[1760692254533,0.002,3738.4,3738.3,11.40679282]
[1760692254734,0.002,3738.4,3738.3,10.9522397]
[1760692255433,0.002,3738.4,3738.3,16.4731757]
[1760692255594,0.002,3738.4,3738.3,17.1067757]
[1760692256331,0.0012,3738.4,3738.3,17.1067757]
[1760692256489,0.0012,3738.4,3738.3,20.6300717]
[1760692256695,0.0012,3738.4,3738.3,11.7726987]
[1760692256905,0.0012,3738.4,3738.3,4.4030127]
[1760692257206,0.0012,3738.4,3738.3,10.3072507]
[1760692257418,0.0012,3738.4,3738.3,2.6750127]
[1760692258332,0.0012,3738.4,3738.3,7.9208977]
[1760692258495,0.0012,3738.4,3738.3,2.6750127]
[1760692258897,0.0012,3738.4,3737.9,0.001]
[1760692258898,0.0012,3738.4,3738.2,5.52103113]
[1760692259400,0.0012,3738.4,3738.3,2.6750127]
[1760692260833,0.0012,3738.4,3738.2,2.67506018]
[1760692261038,0.0012,3738.4,3738.2,2.67502267]
[1760692261345,0.0012,3738.4,3738.3,2.6750127]
[1760692261934,0.0012,3738.4,3738.1,2.67509955]
[1760692262337,0.4668,3738.3,3737.9,0.001]
[1760692262545,0.6336,3738.2,3737.9,0.001]
[1760692263027,3.14197054,3738.1,3737.9,0.001]
[1760692263346,0.4668,3738.1,3737.9,0.001]
[1760692263512,0.4668,3738.0,3737.9,0.001]
[1760692263713,3.77562739,3738.0,3737.9,0.001]
[1760692263912,2.8284,3738.0,3737.9,0.001]
[1760692264213,5.50362739,3738.0,3737.9,0.001]
[1760692264416,2.3616,3738.0,3737.9,0.001]
[1760692264631,2.8284,3738.0,3737.9,0.001]
[1760692265042,5.50362739,3738.0,3737.9,0.001]
[1760692266113,3.30911369,3737.6,3737.1,0.001]
[1760692266455,5.03740006,3737.2,3737.1,0.001]
[1760692266768,0.6336,3736.3,3735.3,0.00067343]
[1760692266930,0.2152,3735.4,3735.3,0.00067343]
[1760692267450,0.682,3735.4,3735.3,0.00067343]
[1760692267663,3.99268946,3735.4,3735.3,0.00067343]
[1760692268110,5.72068946,3735.4,3735.3,0.00067343]
[1760692268546,0.2152,3735.4,3735.3,0.00067343]
[1760692268748,0.682,3735.4,3735.3,0.00067343]
[1760692269345,0.2152,3735.4,3735.3,0.00067343]
[1760692269557,2.845,3735.5,3735.3,0.00067343]
[1760692269756,0.2152,3736.2,3735.3,2.67782803]
[1760692269967,2.845,3736.1,3735.5,2.6770178]
[1760692270131,2.845,3736.1,3735.3,0.00067343]
[1760692270132,1.229,3736.4,3735.3,0.00067343]
[1760692270332,1.229,3736.4,3736.1,2.67656802]
[1760692270682,1.229,3736.4,3735.3,0.00067343]
[1760692270846,1.229,3736.4,3735.8,2.67673579]
[1760692271163,1.229,3736.4,3735.3,0.00067343]
[1760692271369,1.229,3736.4,3735.4,2.67708946]
[1760692271665,0.6336,3736.3,3735.3,0.00067343]
[1760692272230,0.6336,3736.3,3735.6,2.67691242]
[1760692272434,0.6336,3736.3,3735.5,0.02677016]
[1760692272655,1.229,3736.4,3735.3,2.67778529]
[1760692272870,1.229,3736.4,3735.9,2.67670689]
[1760692273052,2.67596276,3737.0,3735.4,3.933779]
[1760692273053,6.47,3738.3,3736.3,0.1582]
[1760692273259,2.845,3737.6,3736.5,2.67630135]
[1760692273479,2.845,3737.6,3736.6,0.02676229]
[1760692273680,2.845,3737.6,3736.9,2.6760109]
[1760692273884,0.1336,3737.3,3736.9,2.6760109]
[1760692274199,1.728,3737.5,3737.2,0.1387]
[1760692274353,0.6891,3738.9,3737.5,2.61375]
[1760692274555,0.1336,3738.7,3738.1,0.1336]
[1760692275096,2.847,3738.8,3738.3,2.6750127]
[1760692275298,2.847,3738.8,3738.3,2.8086127]
[1760692276387,2.847,3738.8,3738.3,0.1336]
[1760692276888,2.847,3738.8,3738.3,2.8086127]
[1760692277084,2.847,3738.8,3737.9,0.4287]
[1760692277290,2.847,3738.8,3738.3,2.6750127]
[1760692277589,0.002,3738.8,3738.3,13.58104682]
[1760692277755,0.002,3738.8,3738.3,9.3877637]
[1760692278083,0.002,3738.8,3738.3,7.4584277]
[1760692278249,0.002,3738.8,3738.3,7.6767127]
[1760692278455,0.002,3738.8,3738.3,7.2470127]
[1760692278660,0.002,3738.8,3738.3,7.9720367]
[1760692278892,0.002,3738.8,3738.3,2.6750127]
[1760692279055,0.002,3738.8,3738.3,5.4603967]
[1760692279657,0.002,3738.8,3738.3,5.1067877]
[1760692279882,0.0004,3738.4,3738.3,2.6750127]
[1760692280093,0.0004,3738.4,3738.3,5.7457947]
[1760692280489,0.0004,3738.4,3738.3,5.4541877]
[1760692280706,0.0004,3738.4,3738.3,5.0286357]
[1760692281066,0.0004,3738.4,3738.3,2.6750127]
[1760692281898,0.0004,3738.4,3737.3,30.80157184]
[1760692282071,0.0004,3738.4,3737.3,28.12587508]
[1760692282271,0.0004,3738.4,3737.8,2.67532306]
[1760692282485,0.0004,3738.4,3737.2,0.1387]
[1760692282687,0.464,3738.3,3736.7,28.56627508]
[1760692282891,0.6822,3738.3,3736.8,2.844]
[1760692283062,0.6822,3738.3,3737.0,1.728]
[1760692283265,0.2182,3738.3,3737.4,2.67565687]
[1760692283612,0.0004,3738.4,3738.3,2.6750127]
[1760692283816,0.0004,3738.4,3737.7,1.728]
[1760692284029,0.0004,3738.4,3737.5,0.4404]
[1760692284183,0.0004,3738.4,3737.8,2.67536123]
[1760692284521,0.0004,3738.4,3738.0,2.67522587]
[1760692284682,0.0004,3738.4,3737.4,4.571]
[1760692285009,0.0004,3738.4,3737.4,1.728]
[1760692285208,0.0004,3738.4,3738.1,2.67514867]
[1760692285424,0.0004,3738.4,3738.3,0.001]
[1760692285576,0.0004,3738.4,3738.3,2.6760127]
[1760692285783,0.0004,3738.4,3738.3,2.70276282]
[1760692286023,0.0004,3738.4,3738.3,6.4928987]
[1760692286283,0.0004,3738.4,3738.3,2.6760127]
[1760692286505,0.0004,3738.4,3738.3,5.00322177]
[1760692286706,0.0004,3738.4,3738.3,10.39502082]
[1760692287013,0.0004,3738.4,3738.3,10.9617427]
[1760692287177,0.0004,3738.4,3738.3,12.8233427]
[1760692287774,0.0004,3738.4,3738.3,2.6760127]
[1760692288009,0.0004,3738.4,3738.3,5.6311877]
[1760692288213,0.0004,3738.4,3738.3,6.0715877]
[1760692288400,0.0004,3738.4,3738.3,38.76846278]
[1760692288992,0.0004,3738.4,3738.3,51.60884678]
[1760692289301,0.0004,3738.4,3738.3,52.35611409]
[1760692290012,0.0004,3738.4,3738.3,37.19415509]
[1760692290211,0.0004,3738.4,3738.3,52.35611409]
[1760692290715,1e-08,3739.2,3739.1,20.19799937]
[1760692291012,1e-08,3739.2,3739.1,51.35487445]
[1760692291435,1e-08,3739.2,3739.1,19.75339937]
[1760692291583,1e-08,3739.2,3739.1,7.24444037]
[1760692291782,1e-08,3739.2,3739.1,2.67444037]
[1760692292008,0.46400001,3739.2,3738.7,2.67466917]
[1760692292349,0.2182,3738.8,3738.3,0.001]
[1760692292487,0.6822,3741.0,3738.8,4.92089]
[1760692292820,0.464,3740.4,3739.5,2.6741353]
[1760692293114,0.464,3740.4,3738.9,2.842]
[1760692293115,0.464,3740.4,3739.6,2.67403318]
[1760692293534,0.2182,3739.7,3738.0,1.1226]
[1760692293690,0.2182,3739.7,3738.4,3.031]
[1760692293891,0.2182,3740.0,3738.6,14.481227]
[1760692294119,0.41942778,3740.9,3738.9,1.728]
[1760692294328,0.41942778,3740.9,3740.1,2.6737253]
[1760692294530,0.30677104,3741.2,3740.1,9.99750618]
[1760692294831,0.63751935,3741.0,3740.1,7.2419393]
[1760692294983,0.2182,3741.0,3740.1,5.0003253]
[1760692295182,0.2182,3741.0,3740.1,11.3028573]
[1760692295431,0.2182,3741.0,3740.1,4.4017253]
[1760692295639,0.2182,3741.0,3740.1,2.6737253]
[1760692295927,0.2182,3741.0,3739.7,4.079007]
[1760692296128,0.2182,3741.0,3740.1,2.6737253]
[1760692297992,2.67281394,3741.4,3740.1,2.6737253]
[1760692297993,1e-08,3742.3,3742.2,2.67222489]
[1760692298294,1e-08,3742.3,3742.2,50.99618121]
[1760692298523,1e-08,3742.3,3742.2,50.96945897]
[1760692299017,1e-08,3742.3,3742.2,20.39491309]
[1760692299225,1e-08,3742.3,3742.2,22.84358389]
[1760692299420,1e-08,3742.3,3742.2,22.40318389]
[1760692301432,1e-08,3742.3,3742.2,7.24122489]
[1760692301634,1e-08,3742.3,3742.2,9.31169189]
[1760692301802,1e-08,3742.3,3742.2,10.75769189]
[1760692301997,1e-08,3742.3,3742.2,8.19076189]
[1760692302211,0.2182,3743.7,3743.3,2.67143963]
[1760692302468,0.234,3744.3,3743.3,2.682158]
[1760692302624,0.234,3744.3,3743.3,2.69815402]
[1760692302830,0.2029,3744.2,3743.3,2.68873374]
[1760692303032,0.2029,3744.2,3743.3,16.95220374]
[1760692303239,0.2029,3744.2,3743.3,17.37530963]
[1760692303661,0.3915292,3743.4,3743.3,17.37530963]
[1760692303854,0.3915292,3743.4,3743.3,16.93490963]
[1760692304059,0.3915292,3743.4,3743.3,9.15790563]
[1760692304246,0.3915292,3743.4,3743.3,8.90590563]
[1760692304447,0.3915292,3743.4,3743.3,6.71190563]
[1760692304774,0.3915292,3743.4,3743.3,4.39943963]
[1760692306767,0.3915292,3743.4,3743.3,4.42615402]
[1760692307062,0.3915292,3743.4,3743.2,2.67145002]
[1760692307223,0.6252292,3743.4,3742.8,11.223736]
[1760692307423,0.2182,3742.9,3742.8,3.178045]
[1760692307623,0.2337,3743.3,3742.5,1.728]
[1760692307852,0.2182,3743.0,3742.9,2.67172513]
[1760692308164,0.2182,3743.0,3742.5,1.728]
[1760692308165,0.2337,3743.3,3743.2,2.671511]
[1760692308549,0.3915292,3743.4,3743.3,2.67143963]
[1760692308725,0.3915292,3743.4,3743.2,0.1328]
[1760692308932,0.6252292,3743.4,3743.3,2.67143963]
[1760692309147,0.6252292,3743.4,3743.2,0.1328]
[1760692309347,0.2337,3743.3,3743.2,0.1328]
[1760692309545,0.2337,3743.3,3743.2,2.804311]
[1760692309753,0.2337,3743.3,3743.2,0.1328]
[1760692309955,0.2337,3743.3,3741.8,28.12587508]
[1760692310156,0.2337,3743.2,3742.8,0.1328]
[1760692310362,0.2182,3742.9,3742.8,0.1328]
[1760692310563,0.4519,3742.9,3742.8,0.1328]
[1760692310948,0.2182,3742.9,3742.8,0.1328]
[1760692311147,0.2182,3742.9,3742.8,2.80459651]
[1760692311369,0.2182,3742.9,3742.8,0.1328]
[1760692311685,0.2337,3743.2,3742.8,0.1328]
[1760692311895,0.3915292,3743.4,3742.8,0.1328]
[1760692312169,0.4419,3743.3,3742.8,0.1328]
[1760692312642,0.2316,3742.9,3742.8,0.1328]
[1760692312973,0.2316,3742.9,3742.8,2.80459651]
[1760692313163,0.2316,3742.9,3742.8,0.1328]
[1760692313476,0.452,3742.9,3742.8,2.80459651]
[1760692313771,0.452,3742.9,3742.8,0.1328]
[1760692314140,0.452,3742.9,3741.7,0.2361]
[1760692314342,0.2027,3741.8,3741.2,2.6728868]
[1760692314539,1.728,3742.7,3740.8,3.936652]
[1760692314738,0.2316,3742.9,3742.3,2.67214678]
[1760692314944,0.2316,3742.9,3741.7,2.67258198]
[1760692315137,0.2316,3742.9,3742.2,2.67215638]
[1760692315138,0.41913931,3742.8,3742.2,2.67215638]
[1760692315379,0.41913931,3742.8,3741.9,2.67243913]
[1760692315380,0.2316,3742.9,3742.1,0.2179]
[1760692315669,0.2316,3742.9,3742.5,2.67194906]
[1760692315869,0.22,3742.8,3742.1,2.67223316]
[1760692316037,0.22,3742.8,3741.7,29.66701709]
[1760692316038,0.2316,3742.9,3742.2,0.2179]
[1760692316236,0.2315,3742.9,3742.3,2.67208737]
[1760692316452,0.2315,3742.9,3741.8,0.4582]
[1760692316636,0.2315,3742.9,3742.4,2.67208175]
[1760692316862,0.2315,3742.9,3742.1,0.2179]
[1760692317079,0.2315,3742.9,3742.4,2.67201873]
[1760692317267,0.2315,3742.9,3742.5,2.67195274]
[1760692317512,0.3915292,3743.4,3742.1,0.2179]
[1760692317806,0.3915292,3743.4,3742.6,2.6719353]
[1760692318014,0.3915292,3743.4,3742.5,2.67198443]
[1760692318211,0.22,3743.3,3741.8,1.728]
[1760692318399,0.22,3743.3,3741.9,2.251661]
[1760692318601,0.3915292,3743.4,3741.9,2.251661]
[1760692318813,2.67162965,3743.1,3742.1,2.67228949]
[1760692319112,0.22,3743.0,3742.1,2.6722562]
[1760692319414,0.2315,3742.9,3741.8,1.728]
[1760692319614,0.6116292,3743.4,3742.2,0.2179]
[1760692319615,0.3915292,3743.4,3742.2,0.2179]
[1760692319913,0.3915292,3743.4,3742.7,2.67181018]
[1760692320117,0.3915292,3743.4,3742.3,2.67215348]
[1760692320415,0.22,3743.3,3742.4,2.67204075]
[1760692320596,0.22,3743.3,3742.5,2.67197026]
[1760692320915,0.22,3743.3,3741.8,1.729]
[1760692321227,0.22,3743.2,3741.8,0.001]
[1760692321417,3.06496084,3743.4,3742.2,29.66701709]
[1760692321418,0.3935292,3743.4,3742.2,29.66701709]
[1760692321602,0.3935292,3743.4,3742.9,2.67170818]
[1760692321782,0.3935292,3743.4,3743.0,2.67160034]
[1760692321982,0.3935292,3743.4,3742.9,2.67168097]
[1760692322217,0.3935292,3743.4,3743.3,2.67143963]
[1760692322387,0.3935292,3743.4,3743.2,2.67148947]
[1760692322724,0.3935292,3743.4,3743.3,2.67143963]
[1760692323082,0.6198292,3743.4,3742.3,0.2326]
[1760692323287,0.6198292,3743.4,3741.8,0.001]
[1760692323607,2.6716748,3743.0,3742.0,2.6723588]
[1760692323915,0.6198292,3743.4,3741.8,0.001]
[1760692323916,0.4515,3742.9,3741.8,0.001]
[1760692324121,0.1336,3742.5,3741.8,0.1346]
[1760692324289,0.3597,3742.5,3741.8,0.1346]
[1760692324484,0.2252,3742.9,3741.8,0.443]
[1760692324791,0.2252,3743.1,3742.2,2.67215975]
[1760692325005,0.2252,3743.1,3742.4,2.67201932]
[1760692325406,0.2252,3743.1,3742.1,0.2326]
[1760692325616,0.2261,3743.0,3741.8,0.001]
[1760692325823,0.8597,3743.0,3742.1,2.67223354]
[1760692326021,3.53135667,3743.0,3742.1,2.67223354]
[1760692326217,0.6336,3743.0,3742.2,2.67220759]
[1760692326410,3.5313614,3743.0,3742.1,2.67228607]
[1760692326622,0.8597,3743.0,3742.1,2.67228607]
[1760692327210,0.8597,3743.0,3741.8,0.001]
[1760692327211,2.67178899,3742.9,3741.8,0.001]
[1760692327417,0.2034,3741.9,3741.8,0.001]
[1760692328503,0.2259,3742.2,3741.8,0.001]
[1760692328803,0.644786,3742.8,3741.8,0.001]
[1760692329040,1.728,3742.6,3741.8,0.001]
[1760692329339,0.3935292,3743.4,3742.4,2.6720652]
[1760692329705,0.3935292,3743.4,3742.4,2.67208208]
[1760692330046,0.3935292,3743.4,3742.4,2.67206863]
[1760692330240,2.67150669,3743.3,3742.3,2.67214762]
[1760692330546,1.728,3743.3,3742.6,2.6719311]
[1760692330713,3.1201776,3743.2,3742.0,0.2326]
[1760692330913,0.4486,3743.2,3742.0,0.2326]
[1760692331110,0.4486,3743.2,3742.6,2.6719157]
[1760692331315,0.3935292,3743.4,3742.5,2.67201068]
[1760692331513,0.3935292,3743.4,3742.0,0.2326]
[1760692331749,0.3935292,3743.4,3742.6,2.67189463]
[1760692332039,0.3935292,3743.4,3742.5,2.67198844]
[1760692332245,3.06490844,3743.4,3742.5,2.67198844]
[1760692332655,0.3935292,3743.4,3742.0,0.2326]
[1760692332825,2.67148853,3743.3,3742.0,0.2326]
[1760692333028,2.67148853,3743.3,3742.3,2.6721391]
[1760692333226,0.6191292,3743.4,3742.6,2.67189364]
[1760692333525,0.6191292,3743.4,3742.5,2.67201047]
[1760692333772,0.6191292,3743.4,3742.6,2.67193929]
[1760692333961,2.67143963,3743.3,3742.3,2.67209935]
[1760692334147,0.6336,3743.3,3742.3,2.6721394]
[1760692334357,2.67152449,3743.2,3742.3,2.6721394]
[1760692334529,2.67151265,3743.2,3742.3,2.6721496]
[1760692334725,0.1328,3743.0,3742.4,0.1336]
[1760692334945,0.2252,3742.9,3742.4,2.80564994]
[1760692335233,0.4508,3742.9,3742.4,0.1336]
[1760692335453,0.1328,3743.0,3742.5,2.67200778]
[1760692336150,0.3584,3743.0,3742.4,0.1336]
[1760692336666,0.2256,3743.0,3741.8,0.001]
[1760692336974,0.1336,3742.3,3741.8,0.001]
[1760692337129,2.8057649,3742.3,3741.8,0.001]
[1760692337475,0.1336,3742.3,3741.8,0.001]
[1760692338635,0.04657605,3742.9,3742.2,0.2326]
[1760692338828,0.2252,3742.9,3742.2,0.2326]
[1760692339254,0.2252,3742.9,3742.3,2.67215348]
[1760692339558,0.2252,3742.9,3742.4,2.67306858]
[1760692339736,0.2252,3742.9,3742.4,0.001]
[1760692339941,0.2256,3742.8,3742.4,0.001]
[1760692340157,0.2256,3743.2,3742.4,2.67301128]
[1760692340361,0.6336,3743.3,3742.4,0.001]
[1760692340576,0.44010042,3743.4,3742.4,0.001]
[1760692340753,0.3935292,3743.4,3743.0,2.67159579]
[1760692341087,0.3935292,3743.4,3742.6,0.02671939]
[1760692341252,0.3935292,3743.4,3743.3,2.90403963]
[1760692341781,0.3935292,3743.4,3743.3,3.37003963]
[1760692343182,0.3935292,3743.4,3742.4,0.001]
[1760692343385,2.67151423,3743.2,3742.4,0.001]
[1760692343593,2.67171499,3743.0,3742.4,0.001]
[1760692343889,0.2249,3742.5,3742.4,0.001]
[1760692344390,0.1929,3742.9,3742.4,0.001]
[1760692344391,0.2246,3742.8,3742.4,0.001]
[1760692344756,2.67144872,3743.3,3742.4,0.001]
[1760692344757,3.06490526,3743.4,3742.4,2.67302356]
[1760692345055,0.3935292,3743.4,3742.4,0.467]
[1760692345394,0.3935292,3743.4,3743.3,2.67143963]
[1760692345557,0.3935292,3743.4,3743.3,3.36033963]
[1760692346180,0.3935292,3743.4,3743.3,2.89433963]
[1760692346488,0.3935292,3743.4,3742.9,2.89461924]
[1760692346685,0.3935292,3743.4,3743.1,2.67152052]
[1760692346983,0.3935292,3743.4,3743.3,2.67143963]
[1760692347394,0.3935292,3743.4,3743.3,3.13743963]
[1760692347553,0.3935292,3743.4,3743.3,2.67143963]
[1760692348386,0.3935292,3743.4,3743.3,3.13743963]
[1760692348688,0.3935292,3743.4,3743.3,3.27023963]
[1760692348993,0.3935292,3743.4,3743.3,2.80423963]
[1760692349358,0.3935292,3743.4,3743.3,3.27023963]
[1760692349859,1e-08,3743.4,3743.3,10.03242763]
[1760692350194,1e-08,3743.4,3743.3,11.76042763]
[1760692350565,0.43510828,3744.5,3744.4,2.67065484]
[1760692351301,0.43430828,3744.5,3744.4,2.67065484]
[1760692352181,0.43430828,3744.5,3744.3,2.67072111]
[1760692352363,0.43430828,3744.5,3744.2,2.67079506]
[1760692352688,0.43430828,3744.5,3744.4,2.67065484]
[1760692353582,0.43430828,3744.5,3744.3,2.67066755]
[1760692353779,0.2365,3744.4,3743.3,2.67141462]
[1760692354093,0.4137,3744.4,3743.5,2.834]
[1760692354403,0.2365,3744.4,3744.0,2.67090069]
[1760692354785,0.43430828,3744.5,3744.1,0.02670868]
[1760692354961,0.43430828,3744.5,3744.1,2.67085566]
[1760692355186,0.43430828,3744.5,3744.4,2.67065484]
[1760692355384,0.43430828,3744.5,3744.2,2.67074284]
[1760692355595,0.61330828,3744.5,3744.1,2.6708007]
[1760692355798,0.43430828,3744.5,3743.5,2.834]
[1760692355995,0.43430828,3744.5,3744.0,2.67088999]
[1760692356182,0.43430828,3744.5,3743.9,2.670956]
[1760692356183,0.179,3744.4,3743.9,2.670956]
[1760692356411,0.179,3744.3,3743.1,0.2229]
[1760692356747,0.179,3744.3,3742.9,29.90398537]
[1760692356748,0.2341,3743.2,3742.9,0.01406828]
[1760692357023,2.67165375,3743.0,3742.9,0.01406828]
[1760692357321,2.9056196,3743.2,3742.9,0.01406828]
[1760692357322,0.2341,3743.2,3742.9,0.01406828]
[1760692357524,0.2336,3743.4,3742.9,0.01406828]
[1760692357697,0.1801,3743.1,3742.9,0.01406828]
[1760692358025,2.67165375,3743.0,3742.9,0.01406828]
[1760692358320,2.85175375,3743.0,3742.9,0.01406828]
[1760692358528,0.1801,3743.0,3742.9,0.01406828]
[1760692358840,2.85175375,3743.0,3742.9,0.01406828]
[1760692359223,3.48535375,3743.0,3742.9,0.01406828]
[1760692359920,3.53192898,3743.0,3742.9,0.01406828]
[1760692361121,5.25992898,3743.0,3742.9,0.01406828]
[1760692361719,5.67912668,3743.0,3742.9,0.01406828]
[1760692362090,3.30561068,3742.5,3742.4,0.001]
[1760692362650,5.21411068,3742.5,3742.4,0.001]
[1760692362949,5.67995777,3742.5,3742.4,0.001]
[1760692367245,5.63336886,3742.5,3742.4,0.001]
[1760692368517,3.30632484,3741.5,3741.4,0.001]
[1760692368713,5.03432484,3741.5,3741.4,0.001]
[1760692368945,5.21502484,3741.5,3741.4,0.001]
[1760692369712,5.26163226,3741.5,3741.4,0.001]
[1760692370709,3.30725381,3740.2,3738.6,0.466]
[1760692370941,5.03525381,3740.2,3738.6,0.466]
[1760692371146,5.21655381,3740.2,3738.6,0.466]
[1760692371329,5.21655381,3740.2,3739.1,0.2242]
[1760692371657,5.21655381,3740.2,3738.6,0.466]
[1760692371658,5.26316864,3740.2,3738.6,0.466]
[1760692372156,5.68270043,3740.2,3738.6,0.466]
[1760692372652,4.86780043,3740.2,3739.2,0.692]
[1760692373016,5.50140043,3740.2,3739.2,0.692]
[1760692373419,3.77340043,3740.2,3740.1,0.2252]
[1760692373721,0.41953179,3740.2,3740.1,0.001]
[1760692374051,1.05313179,3740.2,3740.1,0.001]
[1760692374215,1.05313179,3740.2,3740.1,0.693]
[1760692374543,1.05313179,3740.2,3740.1,0.2252]
[1760692374714,0.41953179,3740.2,3740.1,0.693]
[1760692374914,0.2031,3741.6,3740.1,0.693]
[1760692375227,3.09232288,3741.2,3740.3,2.67358233]
[1760692375417,2.67301061,3741.1,3740.4,0.4678]
[1760692375618,2.6730792,3741.1,3740.4,0.4678]
[1760692375858,2.6730792,3741.1,3740.1,0.2252]
[1760692375859,0.41937969,3741.2,3740.1,0.2252]
[1760692376016,2.67355694,3740.4,3740.1,0.2252]
[1760692376216,2.67345749,3740.5,3740.1,0.2252]
[1760692376449,0.2318,3741.1,3740.1,0.2252]
[1760692376450,0.6336,3740.8,3740.2,0.4678]
[1760692376656,3.30683181,3740.8,3740.2,0.4678]
[1760692376823,0.04660183,3740.9,3740.2,0.4678]
[1760692377145,3.30683153,3740.8,3740.2,0.4678]
[1760692377316,0.6336,3740.8,3740.2,0.4678]
[1760692377512,2.67330284,3740.7,3740.2,0.4678]
[1760692377744,0.04660183,3740.9,3740.3,0.4678]
[1760692377966,0.6336,3740.8,3740.1,0.2252]
[1760692378176,3.30725381,3740.2,3740.1,0.001]
[1760692378981,3.35386163,3740.2,3740.1,0.001]
[1760692379485,0.04660782,3740.2,3740.1,0.001]
[1760692379787,0.04660782,3740.2,3740.1,0.693]
[1760692380087,0.18020782,3740.2,3740.1,0.693]
[1760692380678,2.67312981,3741.0,3740.2,2.673631]
[1760692380845,0.1336,3740.5,3740.3,0.4678]
[1760692381047,0.1336,3740.5,3740.4,0.4678]
[1760692381771,0.1336,3740.5,3740.1,0.2252]
[1760692381971,0.6336,3740.7,3740.1,0.2252]
[1760692382171,2.67345765,3740.5,3740.1,0.001]
[1760692382482,2.71984662,3740.8,3740.1,0.001]
[1760692382483,2.67365381,3740.2,3740.1,0.001]
[1760692382947,0.6336,3740.7,3740.1,0.001]
[1760692383278,2.67365381,3740.2,3740.1,0.001]
[1760692383653,2.67349,3740.5,3740.1,0.6713]
[1760692383867,0.6336,3740.5,3740.1,0.6713]
[1760692384072,0.46602648,3740.8,3740.2,0.4433]
[1760692384276,0.46602648,3740.8,3740.2,3.11692236]
[1760692384277,0.1336,3740.5,3740.2,3.11692236]
[1760692384578,0.1336,3740.5,3740.3,0.77779224]
[1760692384776,2.80706485,3740.5,3740.1,0.228]
[1760692384978,0.1336,3740.5,3740.1,0.228]
[1760692385199,2.67365381,3740.2,3740.1,0.001]
[1760692385408,3.30725381,3740.2,3740.1,0.001]
[1760692385613,5.03553978,3739.8,3739.7,0.001]
[1760692385971,3.48963978,3739.8,3739.7,0.001]
[1760692386184,3.48963978,3739.8,3739.3,0.001]
[1760692386185,3.30782581,3739.4,3739.3,0.001]
[1760692386397,3.44598951,3739.4,3739.3,0.001]
[1760692386585,3.62708951,3739.4,3739.3,0.001]
[1760692386878,3.44598951,3739.4,3739.3,0.001]
[1760692387185,3.62708951,3739.4,3739.3,0.001]
[1760692388404,0.6336,3739.4,3739.3,0.001]
[1760692388610,0.04662526,3739.4,3739.3,0.001]
[1760692388784,0.04662526,3739.4,3739.3,2.1723]
[1760692388975,0.1811,3741.1,3739.3,0.95168118]
[1760692389311,0.04661027,3740.3,3739.7,1.728]
[1760692389499,2.67475194,3741.5,3739.3,0.001]
[1760692389500,0.002,3741.5,3740.2,1.955]
[1760692389808,0.04660026,3741.1,3740.2,0.227]
[1760692390110,2.67308206,3741.0,3740.2,0.227]
[1760692390408,0.04660026,3741.1,3740.2,0.227]
[1760692390606,2.67335738,3740.7,3740.2,0.227]
[1760692390777,2.67335738,3740.7,3740.3,0.4433]
[1760692390977,2.67335738,3740.7,3740.4,0.4433]
[1760692391179,0.04660026,3741.1,3740.2,0.227]
[1760692391381,2.67338061,3740.6,3740.2,0.227]
[1760692391676,0.04660026,3741.1,3740.2,0.6703]
[1760692392002,0.04660026,3741.1,3739.9,0.227]
[1760692392307,0.04660026,3741.1,3740.1,2.6737253]
[1760692392605,0.04660026,3741.1,3740.2,1.04508882]
[1760692392818,0.04660026,3741.1,3740.7,2.67328837]
[1760692393022,0.04660026,3741.1,3740.8,0.4433]
[1760692393220,0.04660026,3741.1,3740.9,0.4433]
[1760692393423,0.002,3741.5,3740.9,3.11642944]
[1760692393591,2.67472569,3741.5,3741.0,0.227]
[1760692393791,0.04659337,3741.3,3741.0,0.6703]
[1760692393998,0.002,3741.5,3741.0,0.6703]
[1760692394198,0.002,3741.5,3740.7,0.227]
[1760692394623,2.67472609,3741.5,3740.8,0.4433]
[1760692394919,0.002,3741.1,3740.8,1.04500255]
[1760692395124,0.002,3741.1,3740.8,0.4433]
[1760692395321,2.67501731,3741.1,3740.8,0.4433]
[1760692395524,0.1356,3741.1,3740.7,0.227]
[1760692395823,2.6750191,3741.1,3740.7,0.227]
[1760692395993,2.67341665,3740.6,3740.2,0.227]
[1760692396190,0.1336,3740.3,3740.2,0.227]
[1760692396434,0.1336,3740.3,3740.2,0.6703]
[1760692396788,0.1336,3740.3,3740.2,0.227]
[1760692397034,2.80718233,3740.3,3740.2,0.227]
[1760692397207,2.80718233,3740.3,3739.9,0.227]
[1760692397411,0.1336,3740.3,3739.9,0.227]
[1760692397914,0.1336,3740.1,3740.0,0.4433]
[1760692398634,0.1336,3740.1,3739.9,0.227]
[1760692398635,0.1328,3740.1,3739.9,0.227]
[1760692398995,0.1328,3740.1,3740.0,0.4433]
[1760692399191,0.1328,3740.1,3739.9,0.227]
[1760692399631,0.1336,3740.6,3740.2,2.67365008]
[1760692399829,0.2196,3741.9,3740.5,0.227]
[1760692400000,2.67266471,3741.6,3740.6,2.67333518]
[1760692400214,0.1984,3741.7,3740.5,0.227]
[1760692400416,0.1984,3741.7,3739.9,0.227]
[1760692400417,0.6336,3740.9,3739.9,0.227]